[Event "*** SCC Grand Prix: Titled Tuesday Blitz"]
[Site "Chess.com"]
[Date "2020.06.23"]
[Round "8"]
[White "temus_galaktionov"]
[Black "Karacsonyi_Gellert"]
[Result "0-1"]
[WhiteElo "2687"]
[BlackElo "2524"]
[TimeControl "180+1"]
[EndTime "11:35:13 PDT"]
[Termination "Karacsonyi_Gellert won on time"]

1. d4 {[%clk 0:02:56.5]} 1... Nf6 {[%clk 0:02:59.7]} 2. Nf3 {[%clk 0:02:57]}
2... d5 {[%clk 0:02:57.9]} 3. c4 {[%clk 0:02:57.4]} 3... e6 {[%clk 0:02:56.9]}
4. Nc3 {[%clk 0:02:57.6]} 4... Nbd7 {[%clk 0:02:57.2]} 5. cxd5 {[%clk
0:02:55.6]} 5... exd5 {[%clk 0:02:56.8]} 6. Bf4 {[%clk 0:02:55.5]} 6... c6
{[%clk 0:02:56.1]} 7. e3 {[%clk 0:02:55.4]} 7... Nh5 {[%clk 0:02:56.3]} 8. Bg5
{[%clk 0:02:55.2]} 8... Be7 {[%clk 0:02:56.1]} 9. Bxe7 {[%clk 0:02:55.4]} 9...
Qxe7 {[%clk 0:02:57]} 10. Bd3 {[%clk 0:02:55.7]} 10... O-O {[%clk 0:02:56.4]}
11. O-O {[%clk 0:02:55.2]} 11... Nhf6 {[%clk 0:02:56.1]} 12. Qc2 {[%clk
0:02:51.9]} 12... Re8 {[%clk 0:02:56]} 13. Nd2 {[%clk 0:02:48]} 13... Nf8 {[%clk
0:02:53.3]} 14. h3 {[%clk 0:02:47.9]} 14... Bd7 {[%clk 0:02:50.4]} 15. b4 {[%clk
0:02:46.4]} 15... b5 {[%clk 0:02:46.9]} 16. Rfb1 {[%clk 0:02:40.4]} 16... Ng6
{[%clk 0:02:42.9]} 17. a4 {[%clk 0:02:38.5]} 17... a6 {[%clk 0:02:42.6]} 18. Nb3
{[%clk 0:02:37.2]} 18... Ne4 {[%clk 0:02:37.9]} 19. Bxe4 {[%clk 0:02:31.8]}
19... dxe4 {[%clk 0:02:38.8]} 20. Nc5 {[%clk 0:02:32.2]} 20... Bf5 {[%clk
0:02:31.4]} 21. Ne2 {[%clk 0:02:15.1]} 21... h5 {[%clk 0:02:11.6]} 22. Ng3
{[%clk 0:01:55.3]} 22... Qg5 {[%clk 0:02:11.6]} 23. Ncxe4 {[%clk 0:01:34]} 23...
Bxe4 {[%clk 0:01:45.8]} 24. Nxe4 {[%clk 0:01:34.9]} 24... Qf5 {[%clk 0:01:46.1]}
25. f3 {[%clk 0:01:34.9]} 25... Nh4 {[%clk 0:01:46.6]} 26. Ra2 {[%clk
0:01:33.4]} 26... Nxf3+ {[%clk 0:01:39.4]} 27. gxf3 {[%clk 0:01:32.7]} 27...
Qxf3 {[%clk 0:01:40.3]} 28. Nd6 {[%clk 0:00:59.6]} 28... Re6 {[%clk 0:01:25.3]}
29. Nf5 {[%clk 0:00:11.5]} 29... Qxh3 {[%clk 0:01:09.4]} 30. Rf1 {[%clk
0:00:05.8]} 30... Rg6+ {[%clk 0:00:59.7]} 31. Kf2 {[%clk 0:00:06.2]} 31... Rg2+
{[%clk 0:00:53.9]} 32. Ke1 {[%clk 0:00:07.1]} 32... Rxc2 {[%clk 0:00:50.1]} 33.
Rxc2 {[%clk 0:00:08]} 33... Re8 {[%clk 0:00:46.7]} 34. Rcf2 {[%clk 0:00:02.5]}
34... g6 {[%clk 0:00:39]} 35. Nh6+ {[%clk 0:00:02.4]} 35... Kh7 {[%clk 0:00:34]}
36. Rf3 {[%clk 0:00:01.7]} 36... Rxe3+ {[%clk 0:00:29.6]} 0-1

[Event "*** SCC Grand Prix: Titled Tuesday Blitz"]
[Site "Chess.com"]
[Date "2020.06.23"]
[Round "8"]
[White "Enki007"]
[Black "Anton_Demchenko"]
[Result "1-0"]
[WhiteElo "2750"]
[BlackElo "2838"]
[TimeControl "180+1"]
[EndTime "11:35:14 PDT"]
[Termination "Enki007 won by resignation"]

1. d4 {[%clk 0:03:00.9]} 1... Nf6 {[%clk 0:02:59.4]} 2. Nf3 {[%clk 0:02:59.5]}
2... d6 {[%clk 0:02:58.4]} 3. g3 {[%clk 0:02:55.4]} 3... g6 {[%clk 0:02:57.5]}
4. Bg2 {[%clk 0:02:55.4]} 4... Bg7 {[%clk 0:02:58.1]} 5. O-O {[%clk 0:02:55.5]}
5... O-O {[%clk 0:02:59]} 6. Nc3 {[%clk 0:02:55.4]} 6... Nc6 {[%clk 0:02:53.8]}
7. d5 {[%clk 0:02:47.5]} 7... Nb4 {[%clk 0:02:51.7]} 8. a3 {[%clk 0:02:43.9]}
8... Na6 {[%clk 0:02:50.9]} 9. Nd4 {[%clk 0:02:42.9]} 9... e5 {[%clk 0:02:49]}
10. dxe6 {[%clk 0:02:39.8]} 10... fxe6 {[%clk 0:02:49.9]} 11. e4 {[%clk
0:02:21.7]} 11... e5 {[%clk 0:02:48.6]} 12. Nde2 {[%clk 0:02:16]} 12... Nc5
{[%clk 0:02:39.2]} 13. h3 {[%clk 0:02:15.2]} 13... Bd7 {[%clk 0:02:32.1]} 14.
Be3 {[%clk 0:02:14.9]} 14... b6 {[%clk 0:01:39.1]} 15. b4 {[%clk 0:02:02.5]}
15... Na4 {[%clk 0:01:24.9]} 16. Nd5 {[%clk 0:01:57.2]} 16... Nxd5 {[%clk
0:01:16.7]} 17. Qxd5+ {[%clk 0:01:56.8]} 17... Kh8 {[%clk 0:01:17]} 18. c4
{[%clk 0:01:50.9]} 18... Qc8 {[%clk 0:01:15.1]} 19. Rac1 {[%clk 0:01:35.4]}
19... Be6 {[%clk 0:00:32.6]} 20. Qc6 {[%clk 0:01:33.8]} 20... Bd7 {[%clk
0:00:26.5]} 21. Qd5 {[%clk 0:01:33.7]} 21... a6 {[%clk 0:00:22.7]} 22. Kh2
{[%clk 0:01:25.1]} 22... Be6 {[%clk 0:00:21.8]} 23. Qd2 {[%clk 0:01:24.4]} 23...
Qe8 {[%clk 0:00:15.9]} 24. f4 {[%clk 0:01:07.4]} 24... exf4 {[%clk 0:00:15.7]}
25. gxf4 {[%clk 0:01:03.2]} 25... Rd8 {[%clk 0:00:15.3]} 26. Bd4 {[%clk
0:00:59.4]} 26... Qf7 {[%clk 0:00:14.3]} 27. f5 {[%clk 0:00:52.4]} 27... gxf5
{[%clk 0:00:04.2]} 28. exf5 {[%clk 0:00:48.8]} 28... Bxf5 {[%clk 0:00:04.6]} 29.
Ng3 {[%clk 0:00:44]} 29... Qg6 {[%clk 0:00:05.1]} 30. Bxg7+ {[%clk 0:00:40.6]}
30... Kxg7 {[%clk 0:00:05.6]} 31. Nxf5+ {[%clk 0:00:31.7]} 31... Rxf5 {[%clk
0:00:05.5]} 32. Be4 {[%clk 0:00:32.1]} 32... Qg5 {[%clk 0:00:04.2]} 33. Rg1
{[%clk 0:00:25.2]} 33... Kf6 {[%clk 0:00:01.9]} 34. Rxg5 {[%clk 0:00:23.9]} 1-0

[Event "*** SCC Grand Prix: Titled Tuesday Blitz"]
[Site "Chess.com"]
[Date "2020.06.23"]
[Round "8"]
[White "rpragchess"]
[Black "Phriex"]
[Result "1-0"]
[WhiteElo "2771"]
[BlackElo "2414"]
[TimeControl "180+1"]
[EndTime "11:35:14 PDT"]
[Termination "rpragchess won on time"]

1. Nf3 {[%clk 0:03:00.9]} 1... d5 {[%clk 0:02:59.7]} 2. b4 {[%clk 0:03:01]} 2...
Nf6 {[%clk 0:02:56.4]} 3. Bb2 {[%clk 0:03:01.3]} 3... a5 {[%clk 0:02:55.5]} 4.
b5 {[%clk 0:03:01.1]} 4... Bf5 {[%clk 0:02:54.4]} 5. e3 {[%clk 0:03:00.4]} 5...
e6 {[%clk 0:02:54.3]} 6. c4 {[%clk 0:02:55.4]} 6... dxc4 {[%clk 0:02:49.6]} 7.
Bxc4 {[%clk 0:02:56.3]} 7... Bd3 {[%clk 0:02:44.8]} 8. Qb3 {[%clk 0:02:49.3]}
8... Bxc4 {[%clk 0:02:41.7]} 9. Qxc4 {[%clk 0:02:50.2]} 9... Be7 {[%clk
0:02:26.9]} 10. O-O {[%clk 0:02:49.3]} 10... O-O {[%clk 0:02:25.8]} 11. d4
{[%clk 0:02:49.5]} 11... c6 {[%clk 0:02:19.7]} 12. Nbd2 {[%clk 0:02:45.9]} 12...
cxb5 {[%clk 0:02:19.2]} 13. Qxb5 {[%clk 0:02:46.8]} 13... Qd7 {[%clk 0:02:19.6]}
14. Qe2 {[%clk 0:02:44.2]} 14... Nc6 {[%clk 0:02:16.8]} 15. Rab1 {[%clk
0:02:43.4]} 15... Rab8 {[%clk 0:02:10.7]} 16. Ba1 {[%clk 0:02:32.7]} 16... Nb4
{[%clk 0:01:59.2]} 17. Nc4 {[%clk 0:02:03]} 17... Qa4 {[%clk 0:01:26.7]} 18. a3
{[%clk 0:01:57.2]} 18... Nbd5 {[%clk 0:01:26.6]} 19. e4 {[%clk 0:01:51.4]} 19...
Nf4 {[%clk 0:01:22.8]} 20. Qe3 {[%clk 0:01:41.2]} 20... Nxg2 {[%clk 0:00:57.7]}
21. Kxg2 {[%clk 0:01:31.2]} 21... Qxc4 {[%clk 0:00:57.5]} 22. Rfc1 {[%clk
0:01:30.7]} 22... Qa4 {[%clk 0:00:53.2]} 23. Rc7 {[%clk 0:01:22.4]} 23... Qxa3
{[%clk 0:00:47.6]} 24. Qxa3 {[%clk 0:00:32.5]} 24... Bxa3 {[%clk 0:00:46]} 25.
d5 {[%clk 0:00:33]} 25... Bd6 {[%clk 0:00:33.1]} 26. Rcxb7 {[%clk 0:00:30.9]}
26... Rxb7 {[%clk 0:00:17.3]} 27. Rxb7 {[%clk 0:00:31.8]} 27... Rb8 {[%clk
0:00:15.3]} 28. Ra7 {[%clk 0:00:30.4]} 28... Bc5 {[%clk 0:00:06.5]} 29. Rc7
{[%clk 0:00:26]} 29... Bb6 {[%clk 0:00:05.7]} 30. Rc6 {[%clk 0:00:14.6]} 30...
exd5 {[%clk 0:00:04.7]} 31. Be5 {[%clk 0:00:11.7]} 1-0

[Event "*** SCC Grand Prix: Titled Tuesday Blitz"]
[Site "Chess.com"]
[Date "2020.06.23"]
[Round "8"]
[White "Unknown_IM"]
[Black "BJthechessgod"]
[Result "0-1"]
[WhiteElo "2373"]
[BlackElo "2234"]
[TimeControl "180+1"]
[EndTime "11:35:16 PDT"]
[Termination "BJthechessgod won by checkmate"]

1. d4 {[%clk 0:02:59.4]} 1... Nf6 {[%clk 0:02:59.7]} 2. c4 {[%clk 0:02:59.6]}
2... e6 {[%clk 0:02:58.6]} 3. Nc3 {[%clk 0:02:59.9]} 3... Bb4 {[%clk 0:02:52]}
4. Bf4 {[%clk 0:02:58.1]} 4... O-O {[%clk 0:02:35.1]} 5. Qd3 {[%clk 0:02:57.3]}
5... c5 {[%clk 0:02:29.3]} 6. e3 {[%clk 0:02:56.2]} 6... cxd4 {[%clk 0:02:26.9]}
7. exd4 {[%clk 0:02:55.9]} 7... d5 {[%clk 0:02:27.8]} 8. cxd5 {[%clk 0:02:42.6]}
8... Nxd5 {[%clk 0:02:26.8]} 9. Bd2 {[%clk 0:02:42.6]} 9... Nc6 {[%clk
0:02:23.6]} 10. Nf3 {[%clk 0:02:41.5]} 10... b6 {[%clk 0:02:07.3]} 11. Be2
{[%clk 0:02:29.8]} 11... Bb7 {[%clk 0:02:06.2]} 12. O-O {[%clk 0:02:29.6]} 12...
Rc8 {[%clk 0:02:04.7]} 13. Ng5 {[%clk 0:02:20.4]} 13... g6 {[%clk 0:01:32.4]}
14. Qh3 {[%clk 0:02:10.2]} 14... h5 {[%clk 0:01:12.8]} 15. Rad1 {[%clk
0:01:44.3]} 15... Nxd4 {[%clk 0:01:05.3]} 16. Nxd5 {[%clk 0:01:10.5]} 16... Bxd2
{[%clk 0:00:53.5]} 17. Rxd2 {[%clk 0:00:54.5]} 17... Qxd5 {[%clk 0:00:48.7]} 18.
Nf3 {[%clk 0:00:48.9]} 18... Nxf3+ {[%clk 0:00:43]} 19. Bxf3 {[%clk 0:00:48.5]}
19... Qxd2 {[%clk 0:00:43]} 20. Bxb7 {[%clk 0:00:48.9]} 20... Rc2 {[%clk
0:00:38.9]} 21. Be4 {[%clk 0:00:45.8]} 21... Rxb2 {[%clk 0:00:37.7]} 22. Qg3
{[%clk 0:00:38.4]} 22... Qh6 {[%clk 0:00:27.8]} 23. Qa3 {[%clk 0:00:35.6]} 23...
Rd2 {[%clk 0:00:20.7]} 24. Qxa7 {[%clk 0:00:29.5]} 24... Rfd8 {[%clk 0:00:20.9]}
25. Qxb6 {[%clk 0:00:27.2]} 25... Rd1 {[%clk 0:00:21]} 26. Bf3 {[%clk
0:00:24.4]} 26... Rxf1+ {[%clk 0:00:20.8]} 27. Kxf1 {[%clk 0:00:25.2]} 27...
Qc1+ {[%clk 0:00:20.6]} 28. Ke2 {[%clk 0:00:24]} 28... Qd1+ {[%clk 0:00:15.7]}
29. Ke3 {[%clk 0:00:23.4]} 29... Qd3+ {[%clk 0:00:15.8]} 30. Kf4 {[%clk
0:00:23]} 30... Rd4+ {[%clk 0:00:15.5]} 31. Ke5 {[%clk 0:00:20.4]} 31... f6+
{[%clk 0:00:08.3]} 32. Kxe6 {[%clk 0:00:17.7]} 32... Qf5+ {[%clk 0:00:08]} 33.
Ke7 {[%clk 0:00:16.2]} 33... Qd7+ {[%clk 0:00:06.1]} 34. Kxf6 {[%clk 0:00:16]}
34... Qf5+ {[%clk 0:00:05.8]} 35. Ke7 {[%clk 0:00:15.6]} 35... Qf7# {[%clk
0:00:06.1]} 0-1

[Event "*** SCC Grand Prix: Titled Tuesday Blitz"]
[Site "Chess.com"]
[Date "2020.06.23"]
[Round "8"]
[White "Ashedu66"]
[Black "chessmaugli"]
[Result "0-1"]
[WhiteElo "2159"]
[BlackElo "2313"]
[TimeControl "180+1"]
[EndTime "11:35:17 PDT"]
[Termination "chessmaugli won by resignation"]

1. d4 {[%clk 0:03:00.9]} 1... Nf6 {[%clk 0:02:59.1]} 2. Nf3 {[%clk 0:03:01]}
2... e6 {[%clk 0:02:58.6]} 3. c4 {[%clk 0:03:01]} 3... c5 {[%clk 0:02:58.3]} 4.
d5 {[%clk 0:03:00.2]} 4... b5 {[%clk 0:02:58.3]} 5. dxe6 {[%clk 0:02:52.6]} 5...
fxe6 {[%clk 0:02:57.3]} 6. cxb5 {[%clk 0:02:52.2]} 6... a6 {[%clk 0:02:57.4]} 7.
bxa6 {[%clk 0:02:46.3]} 7... Bxa6 {[%clk 0:02:56.6]} 8. g3 {[%clk 0:02:46.2]}
8... Nc6 {[%clk 0:02:54.6]} 9. Bg2 {[%clk 0:02:46.1]} 9... d5 {[%clk 0:02:54.3]}
10. O-O {[%clk 0:02:45.2]} 10... Bd6 {[%clk 0:02:53.6]} 11. Nbd2 {[%clk
0:02:41.6]} 11... O-O {[%clk 0:02:51.5]} 12. Re1 {[%clk 0:02:37.2]} 12... e5
{[%clk 0:02:45.4]} 13. e4 {[%clk 0:02:35.5]} 13... d4 {[%clk 0:02:45.2]} 14. b3
{[%clk 0:02:25.1]} 14... Qe7 {[%clk 0:02:26.1]} 15. a3 {[%clk 0:01:57.8]} 15...
Na5 {[%clk 0:02:21.2]} 16. Rb1 {[%clk 0:01:33.4]} 16... Rfb8 {[%clk 0:02:18.9]}
17. Qc2 {[%clk 0:01:16.2]} 17... c4 {[%clk 0:01:59.9]} 18. Nxc4 {[%clk
0:01:00.5]} 18... Nxc4 {[%clk 0:01:55.9]} 19. bxc4 {[%clk 0:01:00.7]} 19... Rxb1
{[%clk 0:01:55.3]} 20. Qxb1 {[%clk 0:01:00.6]} 20... Bxc4 {[%clk 0:01:55.5]} 21.
Bg5 {[%clk 0:00:50.7]} 21... Rxa3 {[%clk 0:01:49.7]} 22. Nh4 {[%clk 0:00:50.4]}
22... g6 {[%clk 0:01:34.3]} 23. f4 {[%clk 0:00:40.4]} 23... Kg7 {[%clk
0:01:29.5]} 24. f5 {[%clk 0:00:34.6]} 24... Qa7 {[%clk 0:01:12]} 25. Kh1 {[%clk
0:00:31.6]} 25... Be7 {[%clk 0:01:08.9]} 26. fxg6 {[%clk 0:00:27.3]} 26... hxg6
{[%clk 0:01:07.5]} 27. Qc1 {[%clk 0:00:24.5]} 27... Rc3 {[%clk 0:01:04.2]} 28.
Bh6+ {[%clk 0:00:23.3]} 28... Kh7 {[%clk 0:01:01]} 29. Qg5 {[%clk 0:00:23]}
29... Bf7 {[%clk 0:00:59.4]} 30. Rf1 {[%clk 0:00:22.1]} 30... Qb6 {[%clk
0:00:48.8]} 31. Nf3 {[%clk 0:00:21.7]} 31... Ng8 {[%clk 0:00:41.3]} 32. Qh4
{[%clk 0:00:19.1]} 32... Bxh4 {[%clk 0:00:39.8]} 33. Nxe5 {[%clk 0:00:17.8]}
33... Nxh6 {[%clk 0:00:36.9]} 34. gxh4 {[%clk 0:00:17]} 34... Be6 {[%clk
0:00:34.6]} 35. h5 {[%clk 0:00:15.1]} 35... gxh5 {[%clk 0:00:33.4]} 36. h3
{[%clk 0:00:14.7]} 36... Qc7 {[%clk 0:00:32.5]} 37. Nf3 {[%clk 0:00:11.9]} 37...
Rc1 {[%clk 0:00:31.9]} 38. Ng5+ {[%clk 0:00:11.2]} 38... Kg6 {[%clk 0:00:29.4]}
39. Nxe6 {[%clk 0:00:09.9]} 39... Rxf1+ {[%clk 0:00:28.9]} 40. Bxf1 {[%clk
0:00:10.1]} 40... Qf7 {[%clk 0:00:25.5]} 0-1

[Event "*** SCC Grand Prix: Titled Tuesday Blitz"]
[Site "Chess.com"]
[Date "2020.06.23"]
[Round "8"]
[White "Kildepiotr"]
[Black "stolencandy13"]
[Result "1-0"]
[WhiteElo "2602"]
[BlackElo "2429"]
[TimeControl "180+1"]
[EndTime "11:35:18 PDT"]
[Termination "Kildepiotr won by resignation"]

1. Nf3 {[%clk 0:03:00.9]} 1... f5 {[%clk 0:02:56.9]} 2. d3 {[%clk 0:03:00.2]}
2... Nf6 {[%clk 0:02:55.4]} 3. e4 {[%clk 0:03:00.5]} 3... fxe4 {[%clk
0:02:39.8]} 4. dxe4 {[%clk 0:03:01.4]} 4... Nxe4 {[%clk 0:02:36]} 5. Bd3 {[%clk
0:03:01]} 5... Nf6 {[%clk 0:02:33.1]} 6. Ng5 {[%clk 0:03:00.3]} 6... g6 {[%clk
0:02:28.4]} 7. h4 {[%clk 0:02:59.1]} 7... d5 {[%clk 0:02:20]} 8. h5 {[%clk
0:02:58.6]} 8... Bg4 {[%clk 0:02:14.3]} 9. f3 {[%clk 0:02:52.6]} 9... Bxh5
{[%clk 0:02:11]} 10. g4 {[%clk 0:02:51]} 10... Qd6 {[%clk 0:02:01.3]} 11. gxh5
{[%clk 0:02:45.4]} 11... Bh6 {[%clk 0:02:01.1]} 12. f4 {[%clk 0:02:19.9]} 12...
Bxg5 {[%clk 0:01:56.2]} 13. fxg5 {[%clk 0:02:19.9]} 13... Qg3+ {[%clk 0:01:56]}
14. Kd2 {[%clk 0:02:09.2]} 14... Qxg5+ {[%clk 0:01:55]} 15. Kc3 {[%clk
0:02:09.1]} 15... Qe5+ {[%clk 0:01:48.8]} 16. Kb3 {[%clk 0:02:08.3]} 16... Nc6
{[%clk 0:01:46.4]} 17. c3 {[%clk 0:02:07.2]} 17... Nxh5 {[%clk 0:01:43.7]} 18.
Re1 {[%clk 0:01:58.1]} 18... Qd6 {[%clk 0:01:41.9]} 19. Qg4 {[%clk 0:01:52]}
19... e5 {[%clk 0:01:38.4]} 20. Bh6 {[%clk 0:01:45.6]} 20... Nf6 {[%clk
0:01:34.6]} 21. Qh3 {[%clk 0:01:39.1]} 21... Nd7 {[%clk 0:01:31.5]} 22. Nd2
{[%clk 0:01:29.3]} 22... O-O-O {[%clk 0:01:25.8]} 23. Kc2 {[%clk 0:01:27.3]}
23... e4 {[%clk 0:01:23]} 24. Bb5 {[%clk 0:01:26.5]} 24... Kb8 {[%clk 0:01:19]}
25. Rad1 {[%clk 0:01:22]} 25... Nde5 {[%clk 0:01:06.3]} 26. Nxe4 {[%clk
0:01:18.7]} 26... Nb4+ {[%clk 0:00:53.5]} 27. cxb4 {[%clk 0:01:13.6]} 27... Qxb4
{[%clk 0:00:53.9]} 28. Qb3 {[%clk 0:01:05.3]} 28... Qxb3+ {[%clk 0:00:50]} 29.
Kxb3 {[%clk 0:01:05.2]} 29... dxe4 {[%clk 0:00:48.4]} 30. Rxd8+ {[%clk
0:01:04.1]} 30... Rxd8 {[%clk 0:00:48.8]} 31. Rxe4 {[%clk 0:01:03.2]} 31... Nf7
{[%clk 0:00:46.6]} 32. Bf4 {[%clk 0:00:58.3]} 32... a6 {[%clk 0:00:44]} 33. Bc4
{[%clk 0:00:53]} 33... Nd6 {[%clk 0:00:41.1]} 34. Re7 {[%clk 0:00:52.9]} 34...
b5 {[%clk 0:00:24.1]} 35. Bd3 {[%clk 0:00:46.1]} 35... h5 {[%clk 0:00:22.7]} 36.
Bxg6 {[%clk 0:00:42.9]} 36... h4 {[%clk 0:00:20.5]} 37. Rh7 {[%clk 0:00:40.9]}
37... Kb7 {[%clk 0:00:19.4]} 38. Rxh4 {[%clk 0:00:36]} 38... Nc4 {[%clk
0:00:19.6]} 39. Rh7 {[%clk 0:00:30.4]} 39... Na5+ {[%clk 0:00:16.1]} 40. Kc2
{[%clk 0:00:29.2]} 40... Nc6 {[%clk 0:00:12.4]} 41. Rxc7+ {[%clk 0:00:26.3]}
41... Kb6 {[%clk 0:00:12.2]} 42. Rf7 {[%clk 0:00:23.1]} 42... Rd6 {[%clk
0:00:10.7]} 43. Bxd6 {[%clk 0:00:22.2]} 1-0

[Event "*** SCC Grand Prix: Titled Tuesday Blitz"]
[Site "Chess.com"]
[Date "2020.06.23"]
[Round "8"]
[White "RitvarsReimanis"]
[Black "Biranidun"]
[Result "1-0"]
[WhiteElo "2577"]
[BlackElo "2728"]
[TimeControl "180+1"]
[EndTime "11:35:20 PDT"]
[Termination "RitvarsReimanis won on time"]

1. d4 {[%clk 0:02:55.7]} 1... Nf6 {[%clk 0:03:00.1]} 2. c4 {[%clk 0:02:55.4]}
2... g6 {[%clk 0:03:00.6]} 3. Nc3 {[%clk 0:02:55.2]} 3... d5 {[%clk 0:03:01]} 4.
cxd5 {[%clk 0:02:56.1]} 4... Nxd5 {[%clk 0:03:01]} 5. e4 {[%clk 0:02:57]} 5...
Nxc3 {[%clk 0:03:01.5]} 6. bxc3 {[%clk 0:02:57.9]} 6... Bg7 {[%clk 0:03:02.3]}
7. Be3 {[%clk 0:02:58.7]} 7... c5 {[%clk 0:02:59.8]} 8. Qd2 {[%clk 0:02:59.6]}
8... Qa5 {[%clk 0:02:57.9]} 9. Rc1 {[%clk 0:02:58.6]} 9... cxd4 {[%clk
0:02:56.5]} 10. cxd4 {[%clk 0:02:59.5]} 10... Qxd2+ {[%clk 0:02:56.1]} 11. Bxd2
{[%clk 0:02:56.4]} 11... O-O {[%clk 0:02:55.8]} 12. Nf3 {[%clk 0:02:56.5]} 12...
Bg4 {[%clk 0:02:54]} 13. d5 {[%clk 0:02:52.5]} 13... Nd7 {[%clk 0:02:52.2]} 14.
Bb5 {[%clk 0:02:41.1]} 14... Rfc8 {[%clk 0:02:44.8]} 15. Ke2 {[%clk 0:02:33.3]}
15... Nc5 {[%clk 0:02:13.3]} 16. h3 {[%clk 0:02:29.7]} 16... a6 {[%clk
0:02:08.9]} 17. Bd3 {[%clk 0:02:00.3]} 17... Bd7 {[%clk 0:02:01.6]} 18. Bg5
{[%clk 0:01:26.3]} 18... Bb5 {[%clk 0:01:49.1]} 19. Bxb5 {[%clk 0:01:08.1]}
19... axb5 {[%clk 0:01:50]} 20. Bxe7 {[%clk 0:01:03.8]} 20... Nxe4 {[%clk
0:01:22.1]} 21. Rxc8+ {[%clk 0:00:52.7]} 21... Rxc8 {[%clk 0:01:23]} 22. d6
{[%clk 0:00:52.2]} 22... Bf6 {[%clk 0:00:09]} 23. Ke3 {[%clk 0:00:23]} 23...
Bxe7 {[%clk 0:00:08]} 24. dxe7 {[%clk 0:00:23.9]} 24... Nf6 {[%clk 0:00:07.9]}
25. Rd1 {[%clk 0:00:22.5]} 25... Re8 {[%clk 0:00:03.1]} 26. Rd8 {[%clk
0:00:22.1]} 26... Kg7 {[%clk 0:00:03.5]} 27. Rxe8 {[%clk 0:00:19.8]} 27... Nxe8
{[%clk 0:00:04.4]} 28. Nd4 {[%clk 0:00:19.6]} 28... Kf6 {[%clk 0:00:02.6]} 29.
Nxb5 {[%clk 0:00:17.5]} 29... Kxe7 {[%clk 0:00:03]} 30. Kd4 {[%clk 0:00:16.7]}
30... Ke6 {[%clk 0:00:02.5]} 31. Kc5 {[%clk 0:00:13.3]} 31... Kd7 {[%clk
0:00:01.6]} 32. a4 {[%clk 0:00:07.7]} 32... Kc8 {[%clk 0:00:01.6]} 33. Nd6+
{[%clk 0:00:07.1]} 1-0

[Event "*** SCC Grand Prix: Titled Tuesday Blitz"]
[Site "Chess.com"]
[Date "2020.06.23"]
[Round "8"]
[White "Azatic"]
[Black "chenxiaoyuer"]
[Result "0-1"]
[WhiteElo "2531"]
[BlackElo "2385"]
[TimeControl "180+1"]
[EndTime "11:35:21 PDT"]
[Termination "chenxiaoyuer won on time"]

1. e4 {[%clk 0:03:00.9]} 1... c5 {[%clk 0:02:58.3]} 2. Nf3 {[%clk 0:02:58.9]}
2... d6 {[%clk 0:02:57.9]} 3. d4 {[%clk 0:02:59.8]} 3... cxd4 {[%clk 0:02:57.6]}
4. Nxd4 {[%clk 0:03:00.7]} 4... Nf6 {[%clk 0:02:57.2]} 5. Nc3 {[%clk 0:03:01.1]}
5... Nc6 {[%clk 0:02:57.5]} 6. Bg5 {[%clk 0:02:59.2]} 6... e6 {[%clk 0:02:57]}
7. Qd2 {[%clk 0:02:54.6]} 7... Qb6 {[%clk 0:02:56.1]} 8. Nb3 {[%clk 0:02:52.7]}
8... Be7 {[%clk 0:02:55.1]} 9. f3 {[%clk 0:02:52.6]} 9... O-O {[%clk 0:02:54.3]}
10. O-O-O {[%clk 0:02:53.1]} 10... a6 {[%clk 0:02:50.5]} 11. g4 {[%clk
0:02:51.5]} 11... Rd8 {[%clk 0:02:49.6]} 12. Be3 {[%clk 0:02:20]} 12... Qc7
{[%clk 0:02:38.2]} 13. g5 {[%clk 0:02:19.8]} 13... Nd7 {[%clk 0:02:37.6]} 14. h4
{[%clk 0:02:18.1]} 14... b5 {[%clk 0:02:37.1]} 15. h5 {[%clk 0:02:18]} 15... Nc5
{[%clk 0:02:27.6]} 16. g6 {[%clk 0:02:11.1]} 16... b4 {[%clk 0:02:10]} 17. Ne2
{[%clk 0:01:47.2]} 17... Nxb3+ {[%clk 0:01:59.9]} 18. axb3 {[%clk 0:01:48.1]}
18... a5 {[%clk 0:01:59.7]} 19. gxf7+ {[%clk 0:01:28.9]} 19... Kxf7 {[%clk
0:01:58]} 20. Kb1 {[%clk 0:01:16.9]} 20... a4 {[%clk 0:01:23]} 21. Nd4 {[%clk
0:01:15.6]} 21... axb3 {[%clk 0:01:20.9]} 22. cxb3 {[%clk 0:01:16.5]} 22... Nxd4
{[%clk 0:01:02.9]} 23. Bxd4 {[%clk 0:01:16.4]} 23... Qa5 {[%clk 0:01:02.8]} 24.
Bc4 {[%clk 0:00:41.3]} 24... Ba6 {[%clk 0:00:56.5]} 25. Qf4+ {[%clk 0:00:23.8]}
25... Bf6 {[%clk 0:00:42.7]} 26. Bxf6 {[%clk 0:00:17.3]} 26... gxf6 {[%clk
0:00:42.8]} 27. Qh6 {[%clk 0:00:05.4]} 27... Bxc4 {[%clk 0:00:36.5]} 28. Qxh7+
{[%clk 0:00:05.4]} 28... Ke8 {[%clk 0:00:23.8]} 29. Qg8+ {[%clk 0:00:05.3]}
29... Kd7 {[%clk 0:00:22.4]} 30. Qf7+ {[%clk 0:00:04.8]} 30... Kc6 {[%clk
0:00:22.5]} 31. bxc4 {[%clk 0:00:05.1]} 31... b3 {[%clk 0:00:18.3]} 32. Kc1
{[%clk 0:00:02.9]} 32... Qa1+ {[%clk 0:00:13.7]} 33. Kd2 {[%clk 0:00:03.4]}
33... Qxb2+ {[%clk 0:00:13.7]} 34. Ke1 {[%clk 0:00:03.9]} 34... Ra2 {[%clk
0:00:13.2]} 35. Rh2 {[%clk 0:00:01.5]} 35... Qxh2 {[%clk 0:00:11.5]} 0-1